[Event "Titled Tuesday Blitz January 10 Early 2023"]
[White "Leiva, Gianmarco"]
[Black "Leve, Nitai"]
[WhiteFideId "3804399"]
[BlackFideId "2006898"]
[WhiteElo "2392"]
[BlackElo "2128"]
[Result "1-0"]
[Round "09"]
[TimeControl "180+2"]
[Date "2023.01.10"]
[WhiteClock "0:00:05"]
[BlackClock "0:00:06"]

1. e4 {[%clk 0:03:00]}  c6 {[%clk 0:02:59]} 2. d4 {[%clk 0:02:59]}  d5 {[%clk 0:02:58]} 3. e5 {[%clk 0:02:59]}  c5 {[%clk 0:02:56]} 4. dxc5 {[%clk 0:02:56]}  Nc6 {[%clk 0:02:55]} 5. Nf3 {[%clk 0:02:56]}  Bg4 {[%clk 0:02:54]} 6. Bb5 {[%clk 0:02:47]}  e6 {[%clk 0:02:53]} 7. Nbd2 {[%clk 0:02:43]}  Bxc5 {[%clk 0:02:51]} 8. h3 {[%clk 0:02:42]}  Bh5 {[%clk 0:02:49]} 9. Nb3 {[%clk 0:02:39]}  Bb6 {[%clk 0:02:44]} 10. O-O {[%clk 0:02:32]}  Ne7 {[%clk 0:02:44]} 11. Re1 {[%clk 0:02:27]}  O-O {[%clk 0:02:42]} 12. g4 {[%clk 0:02:19]}  Bg6 {[%clk 0:02:41]} 13. Be3 {[%clk 0:02:13]}  Rc8 {[%clk 0:02:40]} 14. c3 {[%clk 0:02:13]}  f6 {[%clk 0:01:20]} 15. exf6 {[%clk 0:01:42]}  Rxf6 {[%clk 0:01:21]} 16. Bg5 {[%clk 0:01:40]}  Qf8 {[%clk 0:01:06]} 17. Bxf6 {[%clk 0:01:16]}  Qxf6 {[%clk 0:01:07]} 18. Bd3 {[%clk 0:01:08]}  Rf8 {[%clk 0:00:59]} 19. Kg2 {[%clk 0:00:22]}  Bxf2 {[%clk 0:00:21]} 20. Kxf2 {[%clk 0:00:19]}  Ne5 {[%clk 0:00:20]} 21. Rxe5 {[%clk 0:00:19]}  Qxe5 {[%clk 0:00:21]} 22. Kg2 {[%clk 0:00:16]}  Be4 {[%clk 0:00:09]} 23. Bxe4 {[%clk 0:00:15]}  Qxe4 {[%clk 0:00:10]} 24. Nd2 {[%clk 0:00:14]}  Qe3 {[%clk 0:00:08]} 25. Qe1 {[%clk 0:00:13]}  Qh6 {[%clk 0:00:08]} 26. Qh4 {[%clk 0:00:12]}  Qxh4 {[%clk 0:00:05]} 27. Nxh4 {[%clk 0:00:12]}  e5 {[%clk 0:00:06]} 28. Nhf3 {[%clk 0:00:11]}  e4 {[%clk 0:00:06]} 29. Nd4 {[%clk 0:00:12]}  Ng6 {[%clk 0:00:06]} 30. Rf1 {[%clk 0:00:10]}  Re8 {[%clk 0:00:05]} 31. Kg3 {[%clk 0:00:10]}  h6 {[%clk 0:00:05]} 32. Rf5 {[%clk 0:00:10]}  Ne5 {[%clk 0:00:05]} 33. Nf1 {[%clk 0:00:08]}  Nc4 {[%clk 0:00:04]} 34. b3 {[%clk 0:00:08]}  Na3 {[%clk 0:00:02]} 35. Ne3 {[%clk 0:00:08]}  Nb1 {[%clk 0:00:01]} 36. Nxd5 {[%clk 0:00:08]}  e3 {[%clk 0:00:02]} 37. Rf1 {[%clk 0:00:08]}  e2 {[%clk 0:00:02]} 38. Re1 {[%clk 0:00:08]}  Nd2 {[%clk 0:00:03]} 39. Rxe2 {[%clk 0:00:05]}  Ne4+ {[%clk 0:00:04]} 40. Kf4 {[%clk 0:00:05]}  Nd6 {[%clk 0:00:05]} 41. Rxe8+ {[%clk 0:00:05]}  Nxe8 {[%clk 0:00:06]} 42. Ke5 {[%clk 0:00:05]}  Kf7 {[%clk 0:00:07]} 43. Nf5 {[%clk 0:00:05]}  b6 {[%clk 0:00:06]} 44. Nd6+ {[%clk 0:00:05]} 1-0


[Site "https://www.chess.com"]

[Event "Titled Tuesday Blitz January 10 Early 2023"]
[White "Fernandez, Michael"]
[Black "Renjith, Sravan"]
[WhiteFideId "5803560"]
[BlackFideId "4306783"]
[WhiteElo "2181"]
[BlackElo "2172"]
[Result "0-1"]
[Round "09"]
[TimeControl "180+2"]
[Date "2023.01.10"]
[WhiteClock "0:00:33"]
[BlackClock "0:00:02"]

1. d4 {[%clk 0:03:00]}  d5 {[%clk 0:02:56]} 2. c4 {[%clk 0:03:00]}  e6 {[%clk 0:02:57]} 3. Nc3 {[%clk 0:03:00]}  c5 {[%clk 0:02:55]} 4. cxd5 {[%clk 0:02:58]}  exd5 {[%clk 0:02:54]} 5. Nf3 {[%clk 0:02:55]}  Nc6 {[%clk 0:02:54]} 6. dxc5 {[%clk 0:02:49]}  d4 {[%clk 0:02:54]} 7. Ne4 {[%clk 0:02:49]}  Bxc5 {[%clk 0:02:49]} 8. Nxc5 {[%clk 0:02:44]}  Qa5+ {[%clk 0:02:48]} 9. Bd2 {[%clk 0:02:45]}  Qxc5 {[%clk 0:02:47]} 10. Rc1 {[%clk 0:02:45]}  Qb6 {[%clk 0:02:40]} 11. e3 {[%clk 0:02:40]}  Nge7 {[%clk 0:02:20]} 12. Nxd4 {[%clk 0:02:32]}  Nxd4 {[%clk 0:02:18]} 13. exd4 {[%clk 0:02:33]}  O-O {[%clk 0:02:08]} 14. Bc4 {[%clk 0:02:22]}  Qxd4 {[%clk 0:01:44]} 15. O-O {[%clk 0:02:18]}  Nc6 {[%clk 0:01:34]} 16. Be3 {[%clk 0:02:11]}  Qxb2 {[%clk 0:01:32]} 17. Bc5 {[%clk 0:02:07]}  Re8 {[%clk 0:01:18]} 18. Bxf7+ {[%clk 0:01:59]}  Kxf7 {[%clk 0:01:12]} 19. Qh5+ {[%clk 0:01:58]}  g6 {[%clk 0:01:08]} 20. Qxh7+ {[%clk 0:01:57]}  Qg7 {[%clk 0:01:07]} 21. Qh4 {[%clk 0:01:45]}  Be6 {[%clk 0:01:04]} 22. Rfe1 {[%clk 0:01:35]}  Rad8 {[%clk 0:01:00]} 23. Re3 {[%clk 0:01:22]}  Bf5 {[%clk 0:00:52]} 24. Qc4+ {[%clk 0:01:12]}  Re6 {[%clk 0:00:41]} 25. Rce1 {[%clk 0:01:09]}  Re8 {[%clk 0:00:26]} 26. Qd5 {[%clk 0:01:09]}  Qf6 {[%clk 0:00:17]} 27. g4 {[%clk 0:01:04]}  Bxg4 {[%clk 0:00:15]} 28. Qd7+ {[%clk 0:01:03]}  Kg8 {[%clk 0:00:14]} 29. Rxe6 {[%clk 0:00:48]}  Rxe6 {[%clk 0:00:13]} 30. Qc8+ {[%clk 0:00:48]}  Kh7 {[%clk 0:00:10]} 31. Qxb7+ {[%clk 0:00:48]}  Qg7 {[%clk 0:00:08]} 32. Qxg7+ {[%clk 0:00:36]}  Kxg7 {[%clk 0:00:09]} 33. Rb1 {[%clk 0:00:37]}  a6 {[%clk 0:00:06]} 34. Kg2 {[%clk 0:00:36]}  Bf5 {[%clk 0:00:06]} 35. Rb7+ {[%clk 0:00:35]}  Kf6 {[%clk 0:00:07]} 36. Kg3 {[%clk 0:00:35]}  Ne5 {[%clk 0:00:06]} 37. Bd4 {[%clk 0:00:35]}  Rd6 {[%clk 0:00:05]} 38. Bb2 {[%clk 0:00:34]}  Rd3+ {[%clk 0:00:05]} 39. Kf4 {[%clk 0:00:33]}  g5# {[%clk 0:00:02]} 0-1


[Site "https://www.chess.com"]

[Event "Titled Tuesday Blitz January 10 Early 2023"]
[White "Kuznecovs, Nikita"]
[Black "Kleiman, Jake"]
[WhiteFideId "11604557"]
[BlackFideId "2020041"]
[WhiteElo "2287"]
[BlackElo "2399"]
[Result "1-0"]
[Round "09"]
[TimeControl "180+2"]
[Date "2023.01.10"]
[WhiteClock "0:00:13"]
[BlackClock "0:00:05"]

1. Nf3 {[%clk 0:02:55]}  d5 {[%clk 0:03:00]} 2. g3 {[%clk 0:02:53]}  e6 {[%clk 0:03:01]} 3. Bg2 {[%clk 0:02:53]}  Nf6 {[%clk 0:03:02]} 4. O-O {[%clk 0:02:52]}  g6 {[%clk 0:03:02]} 5. c4 {[%clk 0:02:43]}  Bg7 {[%clk 0:03:03]} 6. d4 {[%clk 0:02:42]}  O-O {[%clk 0:03:03]} 7. Nc3 {[%clk 0:02:41]}  Ne4 {[%clk 0:03:03]} 8. Qc2 {[%clk 0:02:36]}  Nxc3 {[%clk 0:03:03]} 9. bxc3 {[%clk 0:02:28]}  Nc6 {[%clk 0:03:00]} 10. e4 {[%clk 0:02:16]}  dxe4 {[%clk 0:02:34]} 11. Qxe4 {[%clk 0:02:16]}  e5 {[%clk 0:02:28]} 12. Be3 {[%clk 0:01:34]}  Bf5 {[%clk 0:02:10]} 13. Qd5 {[%clk 0:01:34]}  exd4 {[%clk 0:02:03]} 14. Nxd4 {[%clk 0:01:11]}  Bd7 {[%clk 0:01:38]} 15. Rab1 {[%clk 0:01:04]}  Qc8 {[%clk 0:01:27]} 16. Rfd1 {[%clk 0:00:52]}  Rb8 {[%clk 0:01:17]} 17. Rd2 {[%clk 0:00:38]}  Re8 {[%clk 0:00:24]} 18. Rdb2 {[%clk 0:00:34]}  Re5 {[%clk 0:00:19]} 19. Nxc6 {[%clk 0:00:29]}  bxc6 {[%clk 0:00:10]} 20. Rxb8 {[%clk 0:00:26]}  cxd5 {[%clk 0:00:10]} 21. Rxc8+ {[%clk 0:00:23]}  Bxc8 {[%clk 0:00:09]} 22. cxd5 {[%clk 0:00:18]}  Re8 {[%clk 0:00:09]} 23. c4 {[%clk 0:00:18]}  a6 {[%clk 0:00:08]} 24. Rb8 {[%clk 0:00:14]}  Rf8 {[%clk 0:00:05]} 25. Bf4 {[%clk 0:00:13]} 1-0


[Site "https://www.chess.com"]

[Event "Titled Tuesday Blitz January 10 Early 2023"]
[White "Trigo Urquijo, Sergio"]
[Black "Quinones Garcia, Santiago"]
[WhiteFideId "2262436"]
[BlackFideId "4408497"]
[WhiteElo "2408"]
[BlackElo "2248"]
[Result "0-1"]
[Round "09"]
[TimeControl "180+2"]
[Date "2023.01.10"]
[WhiteClock "0:00:17"]
[BlackClock "0:00:16"]

1. Nf3 {[%clk 0:02:55]}  d5 {[%clk 0:02:59]} 2. e3 {[%clk 0:02:54]}  c6 {[%clk 0:02:59]} 3. c4 {[%clk 0:02:53]}  Nf6 {[%clk 0:02:58]} 4. b3 {[%clk 0:02:51]}  Bg4 {[%clk 0:02:57]} 5. Bb2 {[%clk 0:02:51]}  Nbd7 {[%clk 0:02:57]} 6. h3 {[%clk 0:02:51]}  Bh5 {[%clk 0:02:56]} 7. Be2 {[%clk 0:02:51]}  e6 {[%clk 0:02:56]} 8. O-O {[%clk 0:02:51]}  Bd6 {[%clk 0:02:55]} 9. d4 {[%clk 0:02:51]}  O-O {[%clk 0:02:54]} 10. Nc3 {[%clk 0:02:52]}  Re8 {[%clk 0:02:44]} 11. Rc1 {[%clk 0:02:48]}  h6 {[%clk 0:02:34]} 12. Re1 {[%clk 0:02:37]}  Qe7 {[%clk 0:02:33]} 13. Qd2 {[%clk 0:02:19]}  Rad8 {[%clk 0:02:31]} 14. Qc2 {[%clk 0:02:04]}  Bb8 {[%clk 0:02:21]} 15. e4 {[%clk 0:02:02]}  dxe4 {[%clk 0:02:02]} 16. Nxe4 {[%clk 0:02:03]}  Nxe4 {[%clk 0:01:52]} 17. Qxe4 {[%clk 0:02:02]}  Qd6 {[%clk 0:01:47]} 18. g3 {[%clk 0:01:54]}  Bg6 {[%clk 0:01:35]} 19. Qe3 {[%clk 0:01:53]}  Nf6 {[%clk 0:01:35]} 20. Ne5 {[%clk 0:01:50]}  Bf5 {[%clk 0:01:33]} 21. Bf1 {[%clk 0:01:47]}  Nd7 {[%clk 0:01:09]} 22. Nxd7 {[%clk 0:01:35]}  Qxd7 {[%clk 0:01:06]} 23. Bg2 {[%clk 0:01:36]}  a5 {[%clk 0:00:59]} 24. a4 {[%clk 0:01:31]}  Ba7 {[%clk 0:00:58]} 25. Red1 {[%clk 0:01:29]}  e5 {[%clk 0:00:55]} 26. Qc3 {[%clk 0:01:19]}  Bxd4 {[%clk 0:00:49]} 27. Qxa5 {[%clk 0:01:18]}  Bxh3 {[%clk 0:00:39]} 28. Bxd4 {[%clk 0:01:03]}  exd4 {[%clk 0:00:36]} 29. Bxh3 {[%clk 0:01:01]}  Qxh3 {[%clk 0:00:34]} 30. Qb6 {[%clk 0:01:01]}  d3 {[%clk 0:00:26]} 31. Qb4 {[%clk 0:00:53]}  Re2 {[%clk 0:00:20]} 32. Rd2 {[%clk 0:00:51]}  Rde8 {[%clk 0:00:17]} 33. Rxd3 {[%clk 0:00:46]}  Qf5 {[%clk 0:00:16]} 34. Rf1 {[%clk 0:00:18]}  Qxd3 {[%clk 0:00:16]} 35. Qxb7 {[%clk 0:00:18]}  Re1 {[%clk 0:00:16]} 36. Rxe1 {[%clk 0:00:17]}  Rxe1+ {[%clk 0:00:17]} 37. Kg2 {[%clk 0:00:17]}  Qe4+ {[%clk 0:00:17]} 38. Kh2 {[%clk 0:00:17]}  Rh1# {[%clk 0:00:16]} 0-1


[Site "https://www.chess.com"]

[Event "Titled Tuesday Blitz January 10 Early 2023"]
[White "Horcajuelo Rocamora, Martin"]
[Black "Ezat, Mohamed"]
[WhiteFideId "24573027"]
[BlackFideId "10600906"]
[WhiteElo "2107"]
[BlackElo "2402"]
[Result "1-0"]
[Round "09"]
[TimeControl "180+2"]
[Date "2023.01.10"]
[WhiteClock "0:01:35"]
[BlackClock "0:00:44"]

1. Nf3 {[%clk 0:03:00]}  e6 {[%clk 0:02:40]} 2. b3 {[%clk 0:02:55]}  Nf6 {[%clk 0:02:39]} 3. Bb2 {[%clk 0:02:54]}  a5 {[%clk 0:02:40]} 4. e3 {[%clk 0:02:53]}  a4 {[%clk 0:02:39]} 5. d4 {[%clk 0:02:53]}  Bb4+ {[%clk 0:02:34]} 6. c3 {[%clk 0:02:39]}  Be7 {[%clk 0:02:31]} 7. Bd3 {[%clk 0:02:29]}  O-O {[%clk 0:02:28]} 8. Nbd2 {[%clk 0:02:29]}  d5 {[%clk 0:02:28]} 9. O-O {[%clk 0:02:28]}  c5 {[%clk 0:02:28]} 10. Qe2 {[%clk 0:02:28]}  Nc6 {[%clk 0:02:27]} 11. e4 {[%clk 0:02:25]}  cxd4 {[%clk 0:02:26]} 12. cxd4 {[%clk 0:02:25]}  a3 {[%clk 0:02:18]} 13. Bc3 {[%clk 0:02:17]}  Bb4 {[%clk 0:02:18]} 14. Bxb4 {[%clk 0:02:14]}  Nxb4 {[%clk 0:02:17]} 15. e5 {[%clk 0:02:15]}  Nxd3 {[%clk 0:02:12]} 16. Qxd3 {[%clk 0:02:15]}  Nd7 {[%clk 0:02:00]} 17. Rac1 {[%clk 0:02:13]}  b6 {[%clk 0:01:58]} 18. Qc3 {[%clk 0:02:10]}  Ba6 {[%clk 0:01:58]} 19. Rfe1 {[%clk 0:02:09]}  Qe7 {[%clk 0:01:56]} 20. Qa1 {[%clk 0:01:53]}  h6 {[%clk 0:01:48]} 21. Rc7 {[%clk 0:01:50]}  Rfc8 {[%clk 0:01:47]} 22. Rec1 {[%clk 0:01:51]}  Qd8 {[%clk 0:01:45]} 23. Qc3 {[%clk 0:01:49]}  Rxc7 {[%clk 0:01:39]} 24. Qxc7 {[%clk 0:01:50]}  Qxc7 {[%clk 0:01:36]} 25. Rxc7 {[%clk 0:01:51]}  Rc8 {[%clk 0:01:35]} 26. Rxc8+ {[%clk 0:01:47]}  Bxc8 {[%clk 0:01:35]} 27. Nb1 {[%clk 0:01:47]}  Ba6 {[%clk 0:01:34]} 28. Nxa3 {[%clk 0:01:47]}  Bd3 {[%clk 0:01:35]} 29. Ne1 {[%clk 0:01:46]}  Be2 {[%clk 0:01:34]} 30. f3 {[%clk 0:01:44]}  Ba6 {[%clk 0:01:28]} 31. Kf2 {[%clk 0:01:44]}  f6 {[%clk 0:01:28]} 32. f4 {[%clk 0:01:43]}  Kf7 {[%clk 0:01:26]} 33. Ke3 {[%clk 0:01:43]}  Bf1 {[%clk 0:01:24]} 34. Nac2 {[%clk 0:01:43]}  Ke7 {[%clk 0:01:22]} 35. Nb4 {[%clk 0:01:42]}  Kd8 {[%clk 0:01:19]} 36. Kf2 {[%clk 0:01:40]}  Bb5 {[%clk 0:01:10]} 37. a4 {[%clk 0:01:41]}  g5 {[%clk 0:01:02]} 38. g3 {[%clk 0:01:38]}  gxf4 {[%clk 0:01:01]} 39. gxf4 {[%clk 0:01:39]}  fxe5 {[%clk 0:01:00]} 40. fxe5 {[%clk 0:01:40]}  Nc5 {[%clk 0:00:48]} 41. dxc5 {[%clk 0:01:35]}  bxc5 {[%clk 0:00:47]} 42. axb5 {[%clk 0:01:35]}  cxb4 {[%clk 0:00:48]} 43. Nd3 {[%clk 0:01:35]}  Kc7 {[%clk 0:00:48]} 44. Nxb4 {[%clk 0:01:36]}  Kb6 {[%clk 0:00:48]} 45. Nd3 {[%clk 0:01:35]}  Kxb5 {[%clk 0:00:48]} 46. Ke3 {[%clk 0:01:36]}  h5 {[%clk 0:00:44]} 47. Kd4 {[%clk 0:01:36]}  h4 {[%clk 0:00:44]} 48. Nc5 {[%clk 0:01:35]} 1-0


[Site "https://www.chess.com"]

[Event "Titled Tuesday Blitz January 10 Early 2023"]
[White "Nguyen Hong Nhung"]
[Black "Chos, Alexey"]
[WhiteFideId "12412201"]
[BlackFideId "14117762"]
[WhiteElo "2003"]
[BlackElo "2296"]
[Result "1-0"]
[Round "09"]
[TimeControl "180+2"]
[Date "2023.01.10"]
[WhiteClock "0:01:41"]
[BlackClock "0:00:35"]

1. e4 {[%clk 0:03:00]}  c5 {[%clk 0:02:57]} 2. Nc3 {[%clk 0:03:00]}  d6 {[%clk 0:02:57]} 3. f4 {[%clk 0:03:01]}  Nc6 {[%clk 0:02:57]} 4. Nf3 {[%clk 0:03:01]}  g6 {[%clk 0:02:57]} 5. Bc4 {[%clk 0:03:02]}  Bg7 {[%clk 0:02:56]} 6. O-O {[%clk 0:03:03]}  e6 {[%clk 0:02:56]} 7. d3 {[%clk 0:03:03]}  Nge7 {[%clk 0:02:55]} 8. Qe1 {[%clk 0:03:04]}  O-O {[%clk 0:02:54]} 9. f5 {[%clk 0:03:04]}  exf5 {[%clk 0:02:53]} 10. Qh4 {[%clk 0:03:04]}  fxe4 {[%clk 0:02:52]} 11. Ng5 {[%clk 0:03:04]}  h5 {[%clk 0:02:25]} 12. Nxf7 {[%clk 0:03:01]}  Rxf7 {[%clk 0:02:23]} 13. Bxf7+ {[%clk 0:02:42]}  Kh8 {[%clk 0:02:20]} 14. Bg5 {[%clk 0:02:31]}  exd3 {[%clk 0:02:00]} 15. Nd5 {[%clk 0:02:25]}  Bd4+ {[%clk 0:01:38]} 16. Kh1 {[%clk 0:02:25]}  Kg7 {[%clk 0:01:37]} 17. Nxe7 {[%clk 0:02:21]}  Ne5 {[%clk 0:01:35]} 18. Nf5+ {[%clk 0:02:18]}  Bxf5 {[%clk 0:01:34]} 19. Bxd8 {[%clk 0:02:18]}  Nxf7 {[%clk 0:01:34]} 20. Ba5 {[%clk 0:02:10]}  dxc2 {[%clk 0:01:29]} 21. Bc3 {[%clk 0:02:10]}  Bxc3 {[%clk 0:01:28]} 22. bxc3 {[%clk 0:02:11]}  Re8 {[%clk 0:01:28]} 23. Rac1 {[%clk 0:02:11]}  Ne5 {[%clk 0:01:25]} 24. Rxc2 {[%clk 0:02:06]}  Bxc2 {[%clk 0:01:24]} 25. h3 {[%clk 0:02:03]}  Bd3 {[%clk 0:01:18]} 26. Qf6+ {[%clk 0:02:02]}  Kh7 {[%clk 0:01:17]} 27. Re1 {[%clk 0:02:02]}  Bf5 {[%clk 0:00:52]} 28. Qxd6 {[%clk 0:01:57]}  Nf7 {[%clk 0:00:52]} 29. Qd2 {[%clk 0:01:53]}  Rd8 {[%clk 0:00:51]} 30. Qf2 {[%clk 0:01:49]}  Rd3 {[%clk 0:00:36]} 31. Qxc5 {[%clk 0:01:43]}  b6 {[%clk 0:00:36]} 32. Qc7 {[%clk 0:01:43]}  Rd7 {[%clk 0:00:35]} 33. Qxd7 {[%clk 0:01:41]}  Bxd7 {[%clk 0:00:35]} 34. Re7 {[%clk 0:01:41]} 1-0


[Site "https://www.chess.com"]

[Event "Titled Tuesday Blitz January 10 Early 2023"]
[White "Gressmann, Moritz"]
[Black "Buchenau, Frank"]
[WhiteFideId "24695084"]
[BlackFideId "4604350"]
[WhiteElo "2129"]
[BlackElo "2222"]
[Result "1-0"]
[Round "09"]
[TimeControl "180+2"]
[Date "2023.01.10"]
[WhiteClock "0:00:14"]
[BlackClock "0:00:01"]

1. b3 {[%clk 0:03:00]}  d5 {[%clk 0:02:59]} 2. Bb2 {[%clk 0:03:00]}  Bg4 {[%clk 0:03:00]} 3. Nf3 {[%clk 0:02:57]}  Bxf3 {[%clk 0:02:59]} 4. exf3 {[%clk 0:02:58]}  Nf6 {[%clk 0:02:58]} 5. f4 {[%clk 0:02:58]}  g6 {[%clk 0:02:58]} 6. g3 {[%clk 0:02:59]}  Bg7 {[%clk 0:02:58]} 7. Bg2 {[%clk 0:02:59]}  O-O {[%clk 0:02:59]} 8. O-O {[%clk 0:02:59]}  a5 {[%clk 0:02:51]} 9. a4 {[%clk 0:02:58]}  Nc6 {[%clk 0:02:44]} 10. d4 {[%clk 0:02:51]}  e6 {[%clk 0:02:34]} 11. Nd2 {[%clk 0:02:48]}  Ne8 {[%clk 0:02:32]} 12. c3 {[%clk 0:02:45]}  Nd6 {[%clk 0:02:30]} 13. Nf3 {[%clk 0:02:40]}  Rb8 {[%clk 0:02:29]} 14. Ne5 {[%clk 0:02:39]}  Ne7 {[%clk 0:02:06]} 15. Ba3 {[%clk 0:02:36]}  f6 {[%clk 0:01:57]} 16. Nd3 {[%clk 0:02:35]}  Re8 {[%clk 0:01:51]} 17. Re1 {[%clk 0:02:33]}  Nc6 {[%clk 0:01:41]} 18. Nc5 {[%clk 0:02:31]}  Qc8 {[%clk 0:01:36]} 19. Bh3 {[%clk 0:02:09]}  f5 {[%clk 0:01:36]} 20. Re3 {[%clk 0:02:08]}  b6 {[%clk 0:01:36]} 21. Nd3 {[%clk 0:02:08]}  Ne4 {[%clk 0:01:35]} 22. Ne5 {[%clk 0:02:05]}  Nxe5 {[%clk 0:01:32]} 23. fxe5 {[%clk 0:02:04]}  b5 {[%clk 0:01:21]} 24. axb5 {[%clk 0:01:56]}  Rxb5 {[%clk 0:01:20]} 25. Bf1 {[%clk 0:01:53]}  Rb8 {[%clk 0:01:09]} 26. f3 {[%clk 0:01:52]}  Ng5 {[%clk 0:01:08]} 27. h4 {[%clk 0:01:42]}  Nf7 {[%clk 0:01:01]} 28. f4 {[%clk 0:01:42]}  Qb7 {[%clk 0:00:55]} 29. b4 {[%clk 0:01:37]}  axb4 {[%clk 0:00:39]} 30. Bxb4 {[%clk 0:01:38]}  Bf8 {[%clk 0:00:34]} 31. Bxf8 {[%clk 0:01:31]}  Rxf8 {[%clk 0:00:35]} 32. Re2 {[%clk 0:01:08]}  Qb3 {[%clk 0:00:31]} 33. Qxb3 {[%clk 0:01:03]}  Rxb3 {[%clk 0:00:32]} 34. Rc2 {[%clk 0:01:04]}  Rfb8 {[%clk 0:00:29]} 35. c4 {[%clk 0:01:04]}  Rxg3+ {[%clk 0:00:20]} 36. Kf2 {[%clk 0:00:57]}  Rg4 {[%clk 0:00:20]} 37. cxd5 {[%clk 0:00:54]}  Rxf4+ {[%clk 0:00:20]} 38. Kg1 {[%clk 0:00:40]}  Rxd4 {[%clk 0:00:19]} 39. dxe6 {[%clk 0:00:39]}  Nxe5 {[%clk 0:00:19]} 40. Rxc7 {[%clk 0:00:39]}  Rg4+ {[%clk 0:00:15]} 41. Kf2 {[%clk 0:00:35]}  Rf4+ {[%clk 0:00:13]} 42. Ke3 {[%clk 0:00:25]}  Re4+ {[%clk 0:00:12]} 43. Kd2 {[%clk 0:00:25]}  Nf3+ {[%clk 0:00:10]} 44. Kc3 {[%clk 0:00:22]}  Re3+ {[%clk 0:00:08]} 45. Kc4 {[%clk 0:00:17]}  Rxe6 {[%clk 0:00:07]} 46. Raa7 {[%clk 0:00:16]}  Rb1 {[%clk 0:00:01]} 47. Ra8+ {[%clk 0:00:14]} 1-0


[Site "https://www.chess.com"]

[Event "Titled Tuesday Blitz January 10 Early 2023"]
[White "Kaplan, Avi Harrison"]
[Black "Doluhanova, Evgeniya"]
[WhiteFideId "30934559"]
[BlackFideId "14112035"]
[WhiteElo "2146"]
[BlackElo "2275"]
[Result "0-1"]
[Round "09"]
[TimeControl "180+2"]
[Date "2023.01.10"]
[WhiteClock "0:00:02"]
[BlackClock "0:00:22"]

1. Nf3 {[%clk 0:02:59]}  Nf6 {[%clk 0:02:58]} 2. g3 {[%clk 0:02:58]}  g6 {[%clk 0:02:57]} 3. Bg2 {[%clk 0:02:58]}  Bg7 {[%clk 0:02:58]} 4. O-O {[%clk 0:02:59]}  O-O {[%clk 0:02:58]} 5. d4 {[%clk 0:02:59]}  c6 {[%clk 0:02:56]} 6. c4 {[%clk 0:02:55]}  b6 {[%clk 0:02:54]} 7. Nc3 {[%clk 0:02:53]}  Bb7 {[%clk 0:02:54]} 8. h3 {[%clk 0:02:52]}  d5 {[%clk 0:02:54]} 9. Re1 {[%clk 0:02:44]}  Nbd7 {[%clk 0:02:52]} 10. e4 {[%clk 0:02:43]}  dxe4 {[%clk 0:02:51]} 11. Nxe4 {[%clk 0:02:44]}  Nxe4 {[%clk 0:02:51]} 12. Rxe4 {[%clk 0:02:44]}  e6 {[%clk 0:02:48]} 13. Re1 {[%clk 0:02:25]}  c5 {[%clk 0:02:48]} 14. d5 {[%clk 0:02:10]}  exd5 {[%clk 0:02:47]} 15. cxd5 {[%clk 0:02:11]}  Nf6 {[%clk 0:02:46]} 16. Ne5 {[%clk 0:02:10]}  Bxd5 {[%clk 0:02:41]} 17. Nc6 {[%clk 0:01:46]}  Bxc6 {[%clk 0:02:35]} 18. Bxc6 {[%clk 0:01:47]}  Rc8 {[%clk 0:02:33]} 19. Bg2 {[%clk 0:01:46]}  Qxd1 {[%clk 0:02:30]} 20. Rxd1 {[%clk 0:01:46]}  Rfd8 {[%clk 0:02:30]} 21. Bf4 {[%clk 0:01:38]}  Nh5 {[%clk 0:02:24]} 22. Bb7 {[%clk 0:01:16]}  Rxd1+ {[%clk 0:02:20]} 23. Rxd1 {[%clk 0:01:16]}  Re8 {[%clk 0:02:20]} 24. Bc1 {[%clk 0:01:11]}  Bd4 {[%clk 0:02:17]} 25. Bf3 {[%clk 0:01:06]}  Nxg3 {[%clk 0:02:13]} 26. Kg2 {[%clk 0:00:57]}  Ne2 {[%clk 0:02:09]} 27. Bh6 {[%clk 0:00:46]}  Bg7 {[%clk 0:01:54]} 28. Bxg7 {[%clk 0:00:30]}  Kxg7 {[%clk 0:01:54]} 29. Rd7 {[%clk 0:00:31]}  Nd4 {[%clk 0:01:31]} 30. Bd5 {[%clk 0:00:31]}  Ne6 {[%clk 0:01:22]} 31. Rxa7 {[%clk 0:00:30]}  Nf4+ {[%clk 0:01:22]} 32. Kf3 {[%clk 0:00:27]}  Nxd5 {[%clk 0:01:22]} 33. a4 {[%clk 0:00:26]}  Re6 {[%clk 0:01:21]} 34. h4 {[%clk 0:00:24]}  h5 {[%clk 0:01:20]} 35. Kg3 {[%clk 0:00:24]}  Nb4 {[%clk 0:01:20]} 36. f3 {[%clk 0:00:23]}  Nd3 {[%clk 0:01:19]} 37. Rb7 {[%clk 0:00:22]}  c4 {[%clk 0:01:14]} 38. Rc7 {[%clk 0:00:20]}  Nxb2 {[%clk 0:01:13]} 39. Kf4 {[%clk 0:00:18]}  Nxa4 {[%clk 0:01:13]} 40. Rxc4 {[%clk 0:00:17]}  Nc5 {[%clk 0:01:12]} 41. Kg3 {[%clk 0:00:15]}  Nd3 {[%clk 0:01:10]} 42. Rc3 {[%clk 0:00:14]}  Ne5 {[%clk 0:01:10]} 43. Rb3 {[%clk 0:00:15]}  Rf6 {[%clk 0:01:09]} 44. f4 {[%clk 0:00:12]}  Ng4 {[%clk 0:01:04]} 45. f5 {[%clk 0:00:12]}  gxf5 {[%clk 0:01:02]} 46. Kf4 {[%clk 0:00:12]}  Kg6 {[%clk 0:01:01]} 47. Kg3 {[%clk 0:00:04]}  Rd6 {[%clk 0:00:59]} 48. Kf3 {[%clk 0:00:04]}  Rd3+ {[%clk 0:00:54]} 49. Kf4 {[%clk 0:00:05]}  Rd6 {[%clk 0:00:43]} 50. Kf3 {[%clk 0:00:04]}  Ne5+ {[%clk 0:00:41]} 51. Kf4 {[%clk 0:00:04]}  Nd3+ {[%clk 0:00:41]} 52. Kf3 {[%clk 0:00:02]}  Nc5 {[%clk 0:00:40]} 53. Rb1 {[%clk 0:00:03]}  Kf6 {[%clk 0:00:36]} 54. Kf4 {[%clk 0:00:04]}  Rd4+ {[%clk 0:00:36]} 55. Kf3 {[%clk 0:00:04]}  Rd6 {[%clk 0:00:33]} 56. Kf4 {[%clk 0:00:04]}  Ne6+ {[%clk 0:00:33]} 57. Kf3 {[%clk 0:00:05]}  b5 {[%clk 0:00:32]} 58. Ke3 {[%clk 0:00:02]}  Rb6 {[%clk 0:00:30]} 59. Rb3 {[%clk 0:00:02]}  b4 {[%clk 0:00:30]} 60. Kf3 {[%clk 0:00:02]}  Nc5 {[%clk 0:00:29]} 61. Rb1 {[%clk 0:00:02]}  b3 {[%clk 0:00:29]} 62. Kf4 {[%clk 0:00:03]}  b2 {[%clk 0:00:29]} 63. Rd1 {[%clk 0:00:01]}  b1=Q {[%clk 0:00:27]} 64. Rd3 {[%clk 0:00:02]}  Qf1+ {[%clk 0:00:26]} 65. Rf3 {[%clk 0:00:02]}  Ne6+ {[%clk 0:00:25]} 66. Kg3 {[%clk 0:00:02]}  f4+ {[%clk 0:00:24]} 67. Kh2 {[%clk 0:00:02]}  Rb2+ {[%clk 0:00:23]} 68. Rf2 {[%clk 0:00:02]}  Qxf2+ {[%clk 0:00:23]} 69. Kh3 {[%clk 0:00:02]}  Qg3# {[%clk 0:00:22]} 0-1


[Site "https://www.chess.com"]